Cogmind - Beta 15 @@@ ROGUE MODE // 2025.07.28 @ 20:06:39 Player: Saturn Result: Self-destructed Performance ------------- Evolutions (5) 2500 Regions Visited (10) 2000 Robots Destroyed (89) 445 Value Destroyed (3498) 3498 Prototype IDs (5) 100 Alien Tech Used (0) 0 Bonus (431) 431 TOTAL SCORE: 8974 Bonus ------- High Alert Combat Kills 149 Follower Combat Kills 282 Cogmind --------- Core Integrity 763/1000 Matter 204/300 Energy 3/100 System Corruption 10% Temperature Warm (147) Movement Walking (190) Ox1 Location -5/Upper Caves Parts ------- > --- POWER (2) -------- (None) > --- PROPULSION (6) --- Improved Medium Treads Aluminum Leg Aluminum Leg Aluminum Leg > --- UTILITY (6) ------ Advanced Heat Sink Large Storage Unit Machine Analyzer IFF Parser Improved Transmission Jammer Makeshift Hacking Suite > --- WEAPON (3) ------- Lightning Gun Gatling Laser Heavy Ion Cannon > --- INVENTORY (15) --- Micro Nuclear Core Aluminum Leg Large Storage Unit Advanced Weight Redist. System IFF Parser Microactuators Mini Assault Cannon Mini Assault Cannon Proton Missile Launcher Peak State ------------ > --- POWER ------------ Cooled Ion Engine Cooled Ion Engine > --- PROPULSION ------- Improved Medium Treads Aluminum Leg Aluminum Leg Aluminum Leg Titanium Leg Titanium Leg > --- UTILITY ---------- Advanced Heat Sink Large Storage Unit Machine Analyzer IFF Parser Improved Transmission Jammer Makeshift Hacking Suite > --- WEAPON ----------- Variable Charge Gun Mini Assault Cannon Mini Assault Cannon > --- INVENTORY -------- Micro Nuclear Core Micro Fission Core Aluminum Leg Aluminum Leg Aluminum Leg Aluminum Leg Improved Heat Sink Large Storage Unit IFF Parser Gatling Laser Heavy Ion Cannon Mini Assault Cannon Proton Missile Launcher [Rating: 64] Favorites ----------- Power Nuclear Core Engine Cooled Ion Engine Power Core Nuclear Core Propulsion Aluminum Leg Treads Light Treads Leg Aluminum Leg Utility Large Storage Unit Device Improved Heat Sink Storage Large Storage Unit Processor Machine Analyzer Hackware Makeshift Hacking Suite Protection Light Armor Plating Weapon Mini Assault Cannon Energy Gun Shock Rifle Energy Cannon EM Pulse Cannon Ballistic Gun Improved Assault Rifle Ballistic Cannon Mini Assault Cannon Launcher Rocket Launcher Build | -11 -10 -10 -9 -9 -8 -7 -7 -6 -5 -5 ------- Run | Yrd Mat Min Mat Min Mat Fac Sto Fac Fac Upp Slots Evolved 10 | . . . 2 . 2 2 . 2 2 . Power 1 | . . . . . . 1 . . . . Propulsion 4 | . . . 2 . . 1 . . 1 . Utility 4 | . . . . . 2 . . 2 . . Weapon 1 | . . . . . . . . . 1 . Parts Attached 92 | 5 3 4 7 2 24 14 18 6 9 . Power 12 | 1 1 . 1 . 2 3 2 1 1 . Engine 3 | 1 . . . . . . 1 1 . . Core 9 | . 1 . 1 . 2 3 1 . 1 . Reactor . | . . . . . . . . . . . Propulsion 30 | 2 . 1 3 1 8 3 10 1 1 . Treads 5 | . . . . . 1 2 1 1 . . Leg 25 | 2 . 1 3 1 7 1 9 . 1 . Wheel . | . . . . . . . . . . . Hover . | . . . . . . . . . . . Flight . | . . . . . . . . . . . Utility 23 | 1 1 1 1 . 8 3 2 4 2 . Device 12 | . 1 . 1 . 2 2 1 3 2 . Storage 4 | 1 . 1 . . 1 1 . . . . Processor 3 | . . . . . 2 . . 1 . . Hackware 1 | . . . . . . . 1 . . . Protection 3 | . . . . . 3 . . . . . Artifact . | . . . . . . . . . . . Weapon 27 | 1 1 2 2 1 6 5 4 . 5 . Energy Gun 8 | . 1 . . . 1 3 . . 3 . Energy Cannon 4 | . . . 1 . 2 . . . 1 . Ballistic Gun 9 | 1 . 2 1 1 2 1 1 . . . Ballistic Cannon 3 | . . . . . . . 2 . 1 . Launcher 3 | . . . . . 1 1 1 . . . Special Weapon . | . . . . . . . . . . . Impact Weapon . | . . . . . . . . . . . Slashing Weapon . | . . . . . . . . . . . Piercing Weapon . | . . . . . . . . . . . Special Melee Weapon . | . . . . . . . . . . . Unidentified Prototypes 5 | . . . 1 . 1 . 3 . . . Corrupted Parts 1 | . . . . . . . 1 . . . System Corruption 1 | . . . . . . . 1 . . . Parts Lost 30 | . . 1 1 . 12 3 3 . 6 4 Power 4 | . . . . . . 1 . . 1 2 Propulsion 14 | . . 1 . . 5 1 1 . 4 2 Utility 7 | . . . 1 . 4 1 1 . . . Weapon 5 | . . . . . 3 . 1 . 1 . Highest Loss Streak 9 | . . 1 1 . 9 3 2 . 2 4 To Critical Strikes . | . . . . . . . . . . . Average Backups 12 | 2 6 7 9 14 14 13 14 13 13 9 Power 1 | . 1 2 2 2 2 1 2 1 1 1 Propulsion 3 | 1 2 3 1 4 4 4 5 6 4 1 Utility 3 | . . . 1 3 3 4 4 2 3 4 Weapon 3 | . 1 1 3 4 3 3 2 4 4 3 Tool/Special . | . . . . . . . . . . . Unused Backups 18 | . 5 . 4 . 1 . 2 . . 6 Power 6 | . 1 . 3 . . . 1 . . 1 Propulsion 2 | . 2 . . . . . . . . . Utility 5 | . 1 . . . . . 1 . . 3 Weapon 5 | . 1 . 1 . 1 . . . . 2 Tool/Special . | . . . . . . . . . . . Average Slot Usage (%) 95 | . 81 100 98 99 92 97 96 99 96 97 Engine 2 | . 7 . . . . . 1 12 9 4 Core 9 | . 6 14 11 11 9 14 13 . . 4 Treads 3 | . . . . . . 7 7 6 5 5 Leg 31 | . 28 28 42 44 33 28 27 26 26 28 Device 9 | . 1 14 10 11 8 6 7 14 13 17 Storage 8 | . 14 14 11 11 9 7 7 6 5 5 Processor 5 | . . . . . 10 8 7 11 8 5 Hackware 1 | . . . . . . . 6 6 5 5 Protection 1 | . . . . . 5 6 . . . . Energy Gun 5 | . 7 14 2 . . 4 7 . 5 11 Energy Cannon 3 | . . . 8 11 8 . . . 1 5 Ballistic Gun 6 | . 14 14 11 10 8 3 3 . . . Ballistic Cannon 1 | . . . . . . . . 6 6 . Launcher 1 | . . . . . . 5 1 6 1 . Peak Build Rating 64 | 5 10 9 22 23 28 33 41 52 64 62 Average Rating 29 | 4 7 8 17 22 25 27 33 48 60 60 On Entrance 25 | . 5 9 9 22 23 22 33 41 52 62 Naked Turns . | . . . . . . . . . . . Heaviest Build 55 | 12 15 29 37 37 39 47 45 50 55 52 Greatest Support 64 | 20 20 20 45 45 50 40 44 54 64 64 Greatest Overweight (x) 3 | 3 . 1 1 . 2 1 1 . 1 . Average Overweight (x) . | . . . . . . . . . . . Largest Inventory Capacity 15 | 8 8 15 15 15 15 15 15 15 15 15 Average Capacity 14 | 7 8 13 15 15 15 15 15 15 15 15 Most Carried 15 | 5 8 8 13 15 15 15 15 15 15 9 Average Carried 12 | 2 6 7 9 14 14 13 14 13 13 9 Final Capacity 15 | 8 8 15 15 15 15 15 15 15 15 15 Final Carried 15 | 5 8 8 13 15 10 14 15 15 9 9 Class Distribution -------------------- 64% | Scavenger-Mutant 14% | Mutant 13% | Skirmisher 4% | Scavenger-Skirmisher 3% | Commander-Mutant Dominant Class ---------------- Mutant | -10/Materials Scavenger-Mutant | -10/Mines Scavenger-Mutant | -9/Materials Scavenger-Mutant | -9/Mines Scavenger-Mutant | -8/Materials Scavenger-Mutant | -7/Factory Scavenger-Mutant | -7/Storage Mutant | -6/Factory Skirmisher | -5/Factory Scavenger-Skirmisher | -5/Upper Caves Resources | -11 -10 -10 -9 -9 -8 -7 -7 -6 -5 -5 ----------- Run | Yrd Mat Min Mat Min Mat Fac Sto Fac Fac Upp Matter Collected 2312 | 196 201 54 114 33 573 339 394 . 408 . Remotely . | . . . . . . . . . . . Salvage Created 3504 | . 386 31 149 238 1171 426 692 . 361 50 Parts 164 | . 28 5 4 10 53 21 28 . 11 4 Haulers Intercepted 3 | . . . . . . . 3 . . . Recyclers Shooed 5 | . 2 . . . 1 . 1 . 1 . Parts Field Recycled . | . . . . . . . . . . . Retrieved Matter . | . . . . . . . . . . . Parts Self-Destructed 4 | . . . . . . . . . . 4 Prevented . | . . . . . . . . . . . Kills | -11 -10 -10 -9 -9 -8 -7 -7 -6 -5 -5 ------- Run | Yrd Mat Min Mat Min Mat Fac Sto Fac Fac Upp Combat Hostiles Destroyed 69 | . 9 2 3 3 25 9 8 . 8 2 Guns 32 | . 9 2 1 . 7 3 5 . 4 1 Cannons 24 | . . . 2 3 11 . 3 . 4 1 AOE 12 | . . . . . 7 5 . . . . Classes Destroyed 17 | . 4 . . 3 7 2 1 . . . Worker 1 | . . . . . . 1 . . . . Builder 2 | . . . . . 2 . . . . . Tunneler 1 | . . . . 1 . . . . . . Hauler 3 | . . . . . . . 3 . . . Recycler 4 | . 1 . . 1 1 . 1 . . . Mechanic 2 | . . . . . 1 1 . . . . Operator 3 | . 2 . . . 1 . . . . . Watcher 3 | . . . . . 1 . 1 . 1 . Swarmer 7 | . 3 2 . . . . . . . 2 Grunt 39 | . 6 . 3 1 14 6 9 . . . Brawler 1 | . . . . . 1 . . . . . Duelist 3 | . . . . 1 2 . . . . . Protector 1 | . . . . . 1 . . . . . Sentry 8 | . . . . 1 5 . . . 2 . Hunter 2 | . . . . . 1 1 . . . . Programmer 8 | . . . . . . 2 . . 6 . Heavy 1 | . . . . . 1 . . . . . Best Kill Streak 13 | . 4 1 3 3 13 5 4 . 3 2 Combat Bots Only 9 | . 3 1 3 2 9 4 3 . 3 2 Max Kills in Single Turn 3 | . 1 1 1 1 3 2 1 . 1 1 Gunslinging . | . . . . . . . . . . . Exploded 3 | . . . . . 3 2 . . . . Melee . | . . . . . . . . . . . Uniques/NPCs Destroyed . | . . . . . . . . . . . Combat | -11 -10 -10 -9 -9 -8 -7 -7 -6 -5 -5 -------- Run | Yrd Mat Min Mat Min Mat Fac Sto Fac Fac Upp Hostile Shots Fired 463 | . 35 5 13 4 120 87 69 . 106 24 Missed 132 | . 8 1 3 1 33 23 29 . 30 4 Hits 331 | . 27 4 10 3 87 64 40 . 76 20 Melee 2 | . . . . 1 1 . . . . . Projectile 329 | . 27 4 10 2 86 64 40 . 76 20 Critical Strikes 18 | . . . 1 . 7 3 2 . 4 1 Damage Taken 5491 | . 322 36 135 56 1601 714 597 . 1612 418 Core 691 | . 26 8 . 12 249 94 65 . 183 54 Absorbed by Shields 422 | . . . . . 107 276 39 . . . Regen/Repaired (Parts) 248 | . . . 46 . . 202 . . . . Core Remaining (%) 85 | 100 . 86 . 97 54 . 77 100 . . Volleys Fired 256 | . 39 3 13 5 65 37 47 . 42 5 Largest 3 | . 2 2 2 2 2 2 2 . 3 3 Hottest 200 | . 70 70 86 87 108 105 105 . 200 200 Shots Fired 464 | . 57 6 26 10 113 55 74 . 108 15 Gun 301 | . 57 6 13 5 50 50 64 . 46 10 Cannon 144 | . . . 13 5 49 . 10 . 62 5 Launcher 19 | . . . . . 14 5 . . . . Special . | . . . . . . . . . . . Kinetic 204 | . 39 3 13 5 50 9 34 . 51 . Thermal 104 | . 18 3 . . 22 . . . 51 10 Explosive 19 | . . . . . 14 5 . . . . Electromagnetic 137 | . . . 13 5 27 41 40 . 6 5 Robot Hit Streak 20 | . 10 3 10 20 19 10 7 . 15 3 Robot Miss Streak 5 | . 4 1 2 1 3 4 3 . 5 4 Penetration Max 1 | . . . . . . . 1 . . . Secondary Targets 1 | . . . . . . . 1 . . . Max Gunslinging Chain 1 | . . . . . . . 1 . . . Shots Hit Robots 298 | . 35 3 20 7 84 33 43 . 66 7 Core Hits 196 | . 20 2 6 8 77 28 22 . 25 8 Critical Kills . | . . . . . . . . . . . Critical Parts Destroyed . | . . . . . . . . . . . Critical Strikes 5 | . 1 . . . . . 2 . 2 . Burn 1 | . 1 . . . . . . . . . Blast 3 | . . . . . . . 1 . 2 . Corrupt 1 | . . . . . . . 1 . . . Melee Attacks . | . . . . . . . . . . . Impact . | . . . . . . . . . . . Slashing . | . . . . . . . . . . . Piercing . | . . . . . . . . . . . Sneak Attacks . | . . . . . . . . . . . Combat Hostiles . | . . . . . . . . . . . Follow-up Attacks . | . . . . . . . . . . . Damage Inflicted 8548 | . 426 39 408 211 3059 1221 1119 . 1896 169 Guns 3740 | . 426 39 148 53 869 432 886 . 771 116 Cannons 2684 | . . . 260 121 958 . 173 . 1119 53 Explosions 2050 | . . . . . 1232 788 30 . . . Melee . | . . . . . . . . . . . Ramming 74 | . . . . 37 . 1 30 . 6 . Kinetic 3077 | . 266 15 148 53 869 203 590 . 933 . Thermal 1746 | . 160 24 . . 433 57 30 . 889 153 Explosive 1719 | . . . . . 1149 570 . . . . Electromagnetic 1932 | . . . 260 121 608 390 469 . 68 16 Impact . | . . . . . . . . . . . Slashing . | . . . . . . . . . . . Piercing . | . . . . . . . . . . . Highest Corruption 10 | . . . . . . 3 4 . 10 10 Average Corruption 4 | . . . . . . 1 3 . 7 10 Corruption Purged . | . . . . . . . . . . . Corruption Blocked . | . . . . . . . . . . . Effects 43 | . . . . . . 6 9 . 27 1 Message Errors 7 | . . . . . . . . . 6 1 Matter Fused 11 | . . . . . . 1 3 . 7 . Heat Flow Errors 4 | . . . . . . 1 1 . 2 . Energy Discharges 4 | . . . . . . . 1 . 3 . Parts Rejected 1 | . . . . . . 1 . . . . Data Loss (minor) 10 | . . . . . . 2 3 . 5 . Data Loss (major) 1 | . . . . . . . . . 1 . Misfires 1 | . . . . . . . 1 . . . Weapon Failures 4 | . . . . . . 1 . . 3 . Overload Shots . | . . . . . . . . . . . Overflow Damage 76 | . . . . 2 35 . . . 39 . Projectiles 75 | . . . . 2 34 . . . 39 . Explosions 1 | . . . . . 1 . . . . . Melee . | . . . . . . . . . . . Knockbacks 12 | . . . . . . . . . 12 . Impact . | . . . . . . . . . . . Kinetic 10 | . . . . . . . . . 10 . Secondary 2 | . . . . . . . . . 2 . Self-Inflicted Damage 111 | . . . . . 83 28 . . . . Shots 5 | . . . . . 4 1 . . . . Rammed . | . . . . . . . . . . . Targets Rammed 18 | . . . . 5 . 1 9 . 3 . Kicked 18 | . . . . 5 . 1 9 . 3 . Crushed . | . . . . . . . . . . . Highest Temperature 348 | . 81 . 134 . 76 348 236 . 165 197 Average Temperature 72 | . 35 . 56 . 19 115 91 . 57 105 Received Heat Transfer 1599 | . 111 . 93 12 584 277 270 . 108 144 Effects 1 | . . . . . . 1 . . . . Short Circuit 1 | . . . . . . 1 . . . . Siege Activations . | . . . . . . . . . . . Martial Activations . | . . . . . . . . . . . Shielding Activations . | . . . . . . . . . . . Robots Disrupted . | . . . . . . . . . . . Combat Hostiles . | . . . . . . . . . . . Robots Corrupted 1 | . . . . . . 1 . . . . Combat Hostiles 1 | . . . . . . 1 . . . . Parts Fried 3 | . . . . . 2 . 1 . . . Impact Corruptions . | . . . . . . . . . . . Robots Melted . | . . . . . . . . . . . Combat Hostiles . | . . . . . . . . . . . Parts Melted 10 | . 2 . . 1 . . . . 6 1 Heat Transferred 3134 | . 555 74 . . 568 100 50 . 1488 299 Parts Sabotaged . | . . . . . . . . . . . Parts Stolen . | . . . . . . . . . . . Parts Stripped . | . . . . . . . . . . . Power Chain Reactions 5 | . . . . . 2 2 1 . . . Alert | -11 -10 -10 -9 -9 -8 -7 -7 -6 -5 -5 ------- Run | Yrd Mat Min Mat Min Mat Fac Sto Fac Fac Upp Maximum Alert Level 2 | . 1 . . . 2 1 . . . . Low Security (%) 87 | 100 96 100 100 100 18 89 100 100 100 . Level 1 3 | . 3 . . . 11 10 . . . . Level 2 8 | . . . . . 69 . . . . . Level 3 . | . . . . . . . . . . . Level 4 . | . . . . . . . . . . . Level 5 . | . . . . . . . . . . . High Security . | . . . . . . . . . . . Max Security . | . . . . . . . . . . . Peak Influence 515 | . 200 119 107 55 515 225 196 81 52 . Initial 225 | . . 71 . 25 . 225 67 81 . . Average 94 | . 76 37 27 9 370 127 81 40 12 . Influence Increases 2756 | . 325 108 167 80 915 352 511 . 258 40 Destroy 0b10 Robot/C 1560 | . 180 60 100 60 480 180 300 . 160 40 Destroy 0b10 Robot/NC 100 | . 15 . . 10 35 10 25 . 5 . Destroy Leader 372 | . 40 10 20 10 132 40 68 . 52 . Allied During Kill 116 | . . 8 2 . . . 106 . . . Successful Hack 14 | . . . . . . 2 4 . 8 . Disable Machine 105 | . . . 30 . 15 60 . . . . Anti-Garrison Action 150 | . . . . . 150 . . . . . Destroy Structure 144 | . . . . . 73 45 8 . 18 . Partial Spotted 15 | . . . . . . . . . 15 . Lose Combat Pursuer 180 | . 90 30 15 . 30 15 . . . . Influence Decreases 2756 | . 141 292 100 147 419 699 480 180 252 46 Entered New Map 610 | . . 113 . 42 . 271 82 99 . 3 Time Decay 1736 | . 141 169 70 105 299 398 250 81 210 13 Lost Part 263 | . . 10 10 . 120 30 21 . 42 30 Lost Ally 120 | . . . 20 . . . 100 . . . Purge Threat 27 | . . . . . . . 27 . . . Squads Dispatched 18 | . 2 . . . 8 3 3 . 2 . Investigation 3 | . . . . . 1 1 1 . . . Extermination 5 | . . . . . . 2 1 . 2 . Reinforcement 6 | . 2 . . . 3 . 1 . . . Assault 2 | . . . . . 2 . . . . . Garrison 2 | . . . . . 2 . . . . . Intercept . | . . . . . . . . . . . Searches Triggered . | . . . . . . . . . . . Construction Impeded 1 | . . . . . 1 . . . . . Haulers Reinforced 1 | . . . . . . . 1 . . . Active Scanning Responses . | . . . . . . . . . . . Cargo Convoy Interrupts . | . . . . . . . . . . . Stealth | -11 -10 -10 -9 -9 -8 -7 -7 -6 -5 -5 --------- Run | Yrd Mat Min Mat Min Mat Fac Sto Fac Fac Upp Distress Signals 6 | . 2 . . . 2 . 2 . . . Communications Jammed 44 | . . . . . . . . . 44 . Distress Signals 44 | . . . . . . . . . 44 . Times Spotted 129 | . 20 4 7 4 39 13 22 . 15 5 Peak Tracking Total 9 | . 5 3 3 2 9 4 4 1 5 3 Tactical Retreats 7 | . 3 1 1 . 1 1 . . . . Traps | -11 -10 -10 -9 -9 -8 -7 -7 -6 -5 -5 ------- Run | Yrd Mat Min Mat Min Mat Fac Sto Fac Fac Upp Traps Triggered 5 | . 1 . . . . 2 1 1 . . Indirectly . | . . . . . . . . . . . Trap Hack Attempts . | . . . . . . . . . . . Triggered . | . . . . . . . . . . . Disarmed . | . . . . . . . . . . . Reprogrammed . | . . . . . . . . . . . Reused . | . . . . . . . . . . . Traps Extracted . | . . . . . . . . . . . Installed . | . . . . . . . . . . . Triggered . | . . . . . . . . . . . Machines | -11 -10 -10 -9 -9 -8 -7 -7 -6 -5 -5 ---------- Run | Yrd Mat Min Mat Min Mat Fac Sto Fac Fac Upp Machines Disabled 8 | . . . 2 . 2 4 . . . . Max in Single Turn 2 | . . . . . 1 2 . . . . Garrison Access 1 | . . . . . 1 . . . . . Machines Repaired . | . . . . . . . . . . . Machines Dismantled . | . . . . . . . . . . . Machines Sabotaged . | . . . . . . . . . . . Overloaded Fab Kills . | . . . . . . . . . . . Hacking | -11 -10 -10 -9 -9 -8 -7 -7 -6 -5 -5 --------- Run | Yrd Mat Min Mat Min Mat Fac Sto Fac Fac Upp Machines Accessed 9 | . . . 1 . 1 2 3 . 2 . Terminals 3 | . . . . . . 1 2 . . . Fabricators . | . . . . . . . . . . . Repair Stations 4 | . . . 1 . . 1 1 . 1 . Recycling Units 1 | . . . . . . . . . 1 . Scanalyzers . | . . . . . . . . . . . Garrison Access 1 | . . . . . 1 . . . . . Total Hacks 28 | . . . 2 . 4 10 8 . 4 . Successful 16 | . . . 2 . . 7 5 . 2 . Failed 12 | . . . . . 4 3 3 . 2 . Catastrophic . | . . . . . . . . . . . Database Lockouts . | . . . . . . . . . . . Manual 1 | . . . . . . 1 . . . . Terminals 7 | . . . . . . 2 5 . . . Fabricators . | . . . . . . . . . . . Repair Stations 14 | . . . 2 . . 8 3 . 1 . Recycling Units 3 | . . . . . . . . . 3 . Scanalyzers . | . . . . . . . . . . . Garrison Access 4 | . . . . . 4 . . . . . Terminal Hacks 6 | . . . . . . 1 5 . . . Alert Level 2 | . . . . . . . 2 . . . Unreport Threat 1 | . . . . . . . 1 . . . Investigation Status 1 | . . . . . . 1 . . . . Hauler Manifests 1 | . . . . . . . 1 . . . Zone Layout 1 | . . . . . . . 1 . . . Fabricator Hacks . | . . . . . . . . . . . Repair Station Hacks 8 | . . . 2 . . 6 . . . . Scan Component 4 | . . . 1 . . 3 . . . . Repair 4 | . . . 1 . . 3 . . . . Recycling Unit Hacks 2 | . . . . . . . . . 2 . Recycle Component 1 | . . . . . . . . . 1 . Process 1 | . . . . . . . . . 1 . Scanalyzer . | . . . . . . . . . . . Garrison Access Hacks . | . . . . . . . . . . . Unauthorized Hacks . | . . . . . . . . . . . Terminals . | . . . . . . . . . . . Fabricators . | . . . . . . . . . . . Repair Stations . | . . . . . . . . . . . Recycling Units . | . . . . . . . . . . . Scanalyzers . | . . . . . . . . . . . Garrison Access . | . . . . . . . . . . . Data Cores Recovered 1 | . 1 . . . . . . . . . Used . | . . . . . . . . . . . Hacking Detections 7 | . . . 1 . 1 2 2 . 1 . Full Trace Events 2 | . . . . . 1 . 1 . . . Feedback Events . | . . . . . . . . . . . Feedback Blocked . | . . . . . . . . . . . Robot Schematics Acquired . | . . . . . . . . . . . Robots Built . | . . . . . . . . . . . Authchips . | . . . . . . . . . . . Time . | . . . . . . . . . . . Total Robot Build Rating . | . . . . . . . . . . . Part Schematics Acquired . | . . . . . . . . . . . Parts Built . | . . . . . . . . . . . Authchips . | . . . . . . . . . . . Time . | . . . . . . . . . . . Total Part Build Rating . | . . . . . . . . . . . Parts Repaired 4 | . . . 1 . . 3 . . . . Time 104 | . . . 26 . . 78 . . . . Parts Recycled 1 | . . . . . . . . . 1 . Recycled Matter 134 | . . . . . . . . . 134 . Retrieved Matter . | . . . . . . . . . . . Retrieved Components . | . . . . . . . . . . . Parts Scanalyzed . | . . . . . . . . . . . Part Schematics Acquired . | . . . . . . . . . . . Parts Damaged . | . . . . . . . . . . . Bothacking | -11 -10 -10 -9 -9 -8 -7 -7 -6 -5 -5 ------------ Run | Yrd Mat Min Mat Min Mat Fac Sto Fac Fac Upp Used RIF Installer . | . . . . . . . . . . . Robots Hacked . | . . . . . . . . . . . Non-combat . | . . . . . . . . . . . Combat . | . . . . . . . . . . . Robot Hacks Applied . | . . . . . . . . . . . Relay Couplers Released 1 | . . . . . 1 . . . . . Machine Destruction 1 | . . . . . 1 . . . . . Fabnet Peak Effective % . | . . . . . . . . . . . Robots Rewired . | . . . . . . . . . . . Allies Hacked . | . . . . . . . . . . . Hacks Repelled . | . . . . . . . . . . . Allies | -11 -10 -10 -9 -9 -8 -7 -7 -6 -5 -5 -------- Run | Yrd Mat Min Mat Min Mat Fac Sto Fac Fac Upp Total Allies 12 | . . 2 . . . . 10 . . . Largest Group 10 | . . 2 2 . . . 10 . . . Highest-Rated Group 173 | . . 45 45 . . . 173 . . . Highest-Rated Ally 31 | . . 31 31 . . . 29 . . . Total Orders 2 | . . . . . . . 2 . . . ROAM 1 | . . . . . . . 1 . . . FOLLOW 1 | . . . . . . . 1 . . . Ally Attacks 69 | . . 1 15 . . . 53 . . . Total Damage 848 | . . 22 146 . . . 680 . . . Kills 11 | . . 1 2 . . . 8 . . . Allies Corrupted . | . . . . . . . . . . . Allies Melted . | . . . . . . . . . . . Intel | -11 -10 -10 -9 -9 -8 -7 -7 -6 -5 -5 ------- Run | Yrd Mat Min Mat Min Mat Fac Sto Fac Fac Upp Active Infowar (turns) 2920 | . . . . . 82 951 690 181 968 48 IFF 1135 | . . . . . . . . 119 968 48 Terrain 61 | . . . . . . . . 61 . . Machine Analysis 2920 | . . . . . 82 951 690 181 968 48 Jamming 512 | . . . . . . . . . 464 48 Robot Analysis Total . | . . . . . . . . . . . Derelict Logs Recovered 2 | . . 1 . 1 . . . . . . Drone Launches . | . . . . . . . . . . . Drone Recoveries . | . . . . . . . . . . . Exploration | -11 -10 -10 -9 -9 -8 -7 -7 -6 -5 -5 ------------- Run | Yrd Mat Min Mat Min Mat Fac Sto Fac Fac Upp Turns Passed 5631 | 76 428 621 356 620 692 951 690 181 968 48 Spaces Moved 3078 | 52 240 359 219 490 358 383 308 136 509 24 Core 11 | 11 . . . . . . . . . . Treads . | . . . . . . . . . . . Legs 3067 | 41 240 359 219 490 358 383 308 136 509 24 Wheels . | . . . . . . . . . . . Hover . | . . . . . . . . . . . Flight . | . . . . . . . . . . . Fastest Speed 50 | 50 120 120 120 120 120 120 120 125 124 124 Average Speed 141 | 124 120 166 120 120 123 188 162 125 135 124 Slowest Speed 260 | 200 120 190 190 120 260 190 193 125 200 124 Overloaded Moves . | . . . . . . . . . . . Propulsion Burnouts . | . . . . . . . . . . . Robots Hopped . | . . . . . . . . . . . Potential Cave-ins . | . . . . . . . . . . . Cave-ins Triggered . | . . . . . . . . . . . Exploration Rate (%) 30 | 3 35 75 21 91 32 9 46 3 11 8 Regions Visited 10 Branch Regions 4 Pre-discovered Areas 3 | . . 1 . 1 . . 1 . . . Known Exits Taken . | . . . . . . . . . . . Unknown Exits Taken 10 | 1 1 1 1 1 1 1 1 1 1 . Scrap Searched 2 | . . 1 . 1 . . . . . . Spaces Dug . | . . . . . . . . . . . Terrain Destroyed 157 | . . . . . 102 44 4 . 6 1 Melee . | . . . . . . . . . . . Projectile 16 | . . . . . 7 . 2 . 6 1 AOE 141 | . . . . . 95 44 2 . . . Terrain Rammed . | . . . . . . . . . . . Walls Destroyed . | . . . . . . . . . . . Machines Disabled . | . . . . . . . . . . . Actions | -11 -10 -10 -9 -9 -8 -7 -7 -6 -5 -5 --------- Run | Yrd Mat Min Mat Min Mat Fac Sto Fac Fac Upp Total 3897 | 61 327 379 286 511 492 553 417 147 695 29 Wait 295 | . 29 9 24 6 14 88 7 . 118 . Move 3068 | 51 239 358 218 489 357 382 307 135 508 24 Hop . | . . . . . . . . . . . Pick Up 67 | 5 10 1 14 2 11 11 7 2 4 . Fast Attach 38 | 5 1 . 2 1 8 6 9 3 3 . Attach 39 | . 1 1 2 . 13 6 4 2 10 . Detach 5 | . . . . . . 1 1 1 2 . Swap 44 | . 1 4 4 1 13 9 10 1 1 . Drop 62 | . 7 3 9 2 11 7 16 3 4 . Fire 256 | . 39 3 13 5 65 37 47 . 42 5 Melee . | . . . . . . . . . . . Ram . | . . . . . . . . . . . Kick 18 | . . . . 5 . 1 9 . 3 . Crush . | . . . . . . . . . . . Escape Stasis 5 | . . . . . . 5 . . . . Rewire . | . . . . . . . . . . . Trap . | . . . . . . . . . . . Miscellaneous . | . . . . . . . . . . . Route ------- -11/Scrapyard -10/Materials -10/Mines -9/Materials (discovered 2 exits: *Mat / [*Min]) -9/Mines -8/Materials -7/Factory -7/Storage -6/Factory -5/Factory (discovered 3 exits: [*Fac] / [*Upp x2]) -5/Upper Caves History --------- Turn | Location | Event 22 | -11/Scrapyard | Discovered new exit (range 15) 77 | -11/Scrapyard | Entered Materials 297 | -10/Materials | Discovered new exit (range 14) 328 | -10/Materials | Build established: Mutant 505 | -10/Materials | Entered Mines 633 | -10/Mines | Discovered new exit (range 16) 912 | -10/Mines | Build established: Scavenger-Mutant 1126 | -10/Mines | Entered Materials 1126 | -9/Materials | Accompanied by 2 allies 1126 | -9/Materials | Evolved 2 slots: Propulsion x2 1131 | -9/Materials | Led the pair of lost Derelicts to an unsafe place 1324 | -9/Materials | Repaired Aluminum Leg 1448 | -9/Materials | Discovered new exit (range 15) 1474 | -9/Materials | Discovered new exit (range 6) 1482 | -9/Materials | Entered Mines 1560 | -9/Mines | Joined a pair of Derelicts in attacking an 0b10 outpost 1901 | -9/Mines | Assembled infested the area 1927 | -9/Mines | A weapon hastily lodged in a ceiling crevice suddenly fell to the ground 1957 | -9/Mines | Learned location of Storage (-7) 2000 | -9/Mines | Discovered new exit (range 13) 2102 | -9/Mines | Entered Materials 2102 | -8/Materials | Evolved 2 slots: Utility x2 2132 | -8/Materials | Garrison activated, responded to threat 2340 | -8/Materials | Destroyed 9 combat bots 2693 | -8/Materials | Discovered new exit (range 7) 2782 | -8/Materials | Lost 9 parts (3n3u3w) 2794 | -8/Materials | Entered Factory 2794 | -7/Factory | Evolved 2 slots: Power x1, Propulsion x1 3058 | -7/Factory | Repaired Aluminum Leg 3087 | -7/Factory | Repaired Aluminum Leg 3117 | -7/Factory | Repaired Aluminum Leg 3654 | -7/Factory | Lost 3 parts (1p1n1u) 3690 | -7/Factory | Discovered new exit (range 13) 3745 | -7/Factory | Entered Storage 3965 | -7/Storage | Assisted by bots powering up and referring to "LRC-V3" 4006 | -7/Storage | Learned location of Armory (-3) 4158 | -7/Storage | Lost 4 allies 4338 | -7/Storage | Discovered new exit (range 11) 4435 | -7/Storage | Entered Factory 4435 | -6/Factory | Evolved 2 slots: Utility x2 4594 | -6/Factory | Discovered new exit (range 15) 4607 | -6/Factory | Allied Derelicts emerged from ambush trap array 4616 | -6/Factory | Entered another Factory area 4616 | -5/Factory | Evolved 2 slots: Propulsion x1, Weapon x1 4618 | -5/Factory | Discovered new exit (range 7) 4914 | -5/Factory | Build established: Skirmisher 5301 | -5/Factory | System corruption reached 10% 5484 | -5/Factory | Discovered new exit (range 16) 5531 | -5/Factory | Discovered new exit (range 16) 5584 | -5/Factory | Entered Upper Caves 5622 | -5/Upper Caves | Attracted the attention of an 0b10 base 5632 | -5/Upper Caves | Self-destructed Last Messages --------------- S-27 Virus destroyed. S-27 Virus springs to life. G-50 Soldier springs to life. Emergency Access malfunctions. S-27 Virus destroyed. G-50 Soldier springs to life. Storage Shell breached. Critical hit (Burn: +37). Emergency Access malfunctions. VTOL Module fries itself beyond repair. ZXVPNJ&2WF4CWWGVOSTEIGZATYURNYU